fUST/lending_fUST_20260129
["ID","MTS","AMOUNT","RATE_DAILY","PERIOD"]
[403970096,1769699667885,162.460541,0.00034795,120]
[403970097,1769699670770,300.0,9.626e-05,2]
[403970098,1769699688562,-300.0,0.00010182,2]
[403970099,1769699709100,151.0,0.00034795,120]
[403970100,1769699709224,156.587,0.00034795,120]
[403970101,1769699709652,151.0,0.00034795,120]
[403970102,1769699709948,2000.0,0.00034795,120]
[403970103,1769699710190,250.0,0.00034795,120]
[403970104,1769699712562,187.78006525,0.00034795,120]
[403970105,1769699712906,156.587,0.00034795,120]
[403970106,1769699713219,2000.0,0.00034795,120]
[403970107,1769699713306,151.0,0.00034795,120]
[403970108,1769699713444,250.0,0.00034795,120]
[403970109,1769699715645,156.587,0.00034795,120]
[403970110,1769699716307,187.78006525,0.00034795,120]
[403970111,1769699717504,518.5,0.00034795,120]
[403970112,1769699718936,1000.0,0.00034795,120]
[403970113,1769699719331,500.0,0.00034795,120]
[403970114,1769699720069,2696.2,0.00034795,120]
[403970115,1769699720217,187.78006525,0.00034795,120]
[403970116,1769699720740,621.78829552,0.00034795,120]
[403970117,1769699720786,514.44703991,0.00034795,120]
[403970118,1769699721364,250.0,0.00034795,120]
[403970119,1769699722789,1000.0,0.00034795,120]
[403970120,1769699723477,1000.0,0.00034795,120]
[403970121,1769699724980,250.0,0.00034795,120]
[403970122,1769699727229,250.0,0.00034795,120]
[403970123,1769699728449,250.0,0.00034795,120]
[403970124,1769699729290,250.0,0.00034795,120]
[403970125,1769699731386,151.0,0.00034795,120]
[403970126,1769699736743,151.0,0.00034795,120]
[403970127,1769699737526,2074.0,0.00034795,120]
[403970128,1769699739843,151.0,0.00034795,120]
[403970129,1769699740616,2487.15318209,0.00034795,120]
[403970130,1769699830351,-196.8604747,0.00010082,2]
[403970131,1769699832406,-170.58861361,0.00010082,2]
[403970133,1769699846839,765.44,0.00030136,120]
[403970137,1769699914702,309.84395616,0.0001,2]
[403970138,1769699927340,9690.16604384,9.626e-05,2]
[403970139,1769699927366,10000.01,9.626e-05,2]
[403970140,1769699927396,309.84395616,9.626e-05,2]
[403970142,1769700008209,156.587,0.00034654,120]
[403970143,1769700008412,250.0,0.00034654,120]
[403970144,1769700010772,500.0,0.00034654,120]
[403970145,1769700011017,500.0,0.00034654,120]
[403970146,1769700011268,500.0,0.00034654,120]
[403970147,1769700011436,151.0,0.00034654,120]
[403970148,1769700011691,500.0,0.00034654,120]
[403970149,1769700011972,205.25751481,0.00034654,120]
[403970150,1769700012324,2000.0,0.00034654,120]
[403970151,1769700012510,1000.0,0.00034654,120]
[403970152,1769700014177,151.0,0.00034654,120]
[403970153,1769700014612,151.0,0.00034654,120]
[403970154,1769700015219,151.0,0.00034654,120]
[403970155,1769700015970,2074.0,0.00034654,120]
[403970156,1769700019181,2696.2,0.00034654,120]
[403970157,1769700024077,2487.15318209,0.00034654,120]
[403970158,1769700024597,250.0,0.00034654,120]
[403970159,1769700025038,2000.0,0.00034654,120]
[403970160,1769700025785,151.0,0.00034654,120]
[403970161,1769700025996,2000.0,0.00034654,120]
[403970162,1769700027261,156.587,0.00034654,120]
[403970163,1769700029721,500.0,0.00034654,120]
[403970164,1769700029901,518.5,0.00034654,120]
[403970165,1769700030910,250.0,0.00034654,120]
[403970166,1769700033240,621.78829552,0.00034654,120]
[403970167,1769700035234,151.0,0.00034654,120]
[403970168,1769700036800,9561.905,0.00034654,120]
[403970169,1769700041113,250.0,0.00034654,120]
[403970170,1769700041357,156.587,0.00034654,120]
[403970171,1769700046031,187.78006525,0.00034654,120]
[403970182,1769700193270,3881.6630917,9.38e-05,2]
[403970188,1769700303989,-178.96758663,0.00010082,2]
[403970189,1769700304028,-561.0,0.00010082,2]
[403970190,1769700304064,-168.17006362,0.00010159,2]
[403970191,1769700304100,-516.06,0.00010237,2]
[403970192,1769700304136,-192.42335807,0.00010393,2]
[403970193,1769700304174,-300.0,0.00010443,2]
[403970194,1769700304210,-296.32429182,0.00010444,2]
[403970195,1769700304245,-191.48062914,0.00010444,2]
[403970196,1769700304280,-500.0,0.00010444,2]
[403970197,1769700304317,-500.0,0.00010444,2]
[403970198,1769700304353,-500.0,0.00010444,2]
[403970199,1769700304393,-500.0,0.00010444,2]
[403970200,1769700304603,-500.0,0.00010444,2]
[403970201,1769700304950,-500.0,0.00010444,2]
[403970202,1769700304991,-500.0,0.00010444,2]
[403970203,1769700305028,-382.87661803,0.00010444,2]
[403970204,1769700305064,-500.0,0.00010444,2]
[403970205,1769700305106,-500.0,0.00010444,2]
[403970206,1769700305146,-500.0,0.00010444,2]
[403970207,1769700305193,-500.0,0.00010444,2]
[403970208,1769700305234,-500.0,0.00010444,2]
[403970209,1769700305272,-500.0,0.00010444,2]
[403970210,1769700305312,-500.0,0.00010444,2]
[403970211,1769700305499,-500.0,0.00010444,2]
[403970212,1769700305536,-500.0,0.00010444,2]
[403970213,1769700305575,-500.0,0.00010444,2]
[403970214,1769700305614,-500.0,0.00010444,2]
[403970215,1769700305656,-500.0,0.00010444,2]
[403970216,1769700305701,-500.0,0.00010444,2]
[403970217,1769700305740,-289.46337464,0.00010444,2]
[403970218,1769700305778,-500.0,0.00010444,2]
[403970219,1769700305818,-450.0,0.00010444,2]
[403970220,1769700305863,-500.0,0.00010444,2]
[403970221,1769700305903,-21.08325072,0.00010444,2]
[403970222,1769700305957,-478.91674928,0.00010444,2]
[403970223,1769700305995,-500.0,0.00010444,2]
[403970224,1769700306035,-500.0,0.00010444,2]
[403970225,1769700306074,-500.0,0.00010444,2]
[403970226,1769700306114,-500.0,0.00010444,2]
[403970227,1769700306151,-250.0,0.00010444,2]
[403970228,1769700306189,-500.0,0.00010444,2]
[403970229,1769700306229,-500.0,0.00010444,2]
[403970230,1769700306266,-500.0,0.00010444,2]
[403970231,1769700306304,-500.0,0.00010444,2]
[403970232,1769700306340,-42.17650144,0.00010444,2]
[403970233,1769700306412,-457.82349856,0.00010444,2]
[403970234,1769700306450,-500.0,0.00010444,2]
[403970235,1769700306492,-500.0,0.00010444,2]
[403970236,1769700306527,-500.0,0.00010444,2]
[403970237,1769700306565,-500.0,0.00010444,2]
[403970238,1769700306602,-500.0,0.00010444,2]
[403970239,1769700306646,-500.0,0.00010444,2]
[403970240,1769700306689,-500.0,0.00010444,2]
[403970241,1769700306726,-500.0,0.00010444,2]
[403970242,1769700306766,-500.0,0.00010444,2]
[403970243,1769700307053,-500.0,0.00010444,2]
[403970244,1769700307095,-500.0,0.00010444,2]
[403970245,1769700307133,-500.0,0.00010444,2]
[403970246,1769700307170,-500.0,0.00010444,2]
[403970247,1769700307207,-500.74684198,0.00010444,2]
[403970248,1769700307243,-500.0,0.00010444,2]
[403970249,1769700307279,-500.0,0.00010444,2]
[403970250,1769700307318,-500.0,0.00010444,2]
[403970251,1769700307352,-500.0,0.00010444,2]
[403970252,1769700307388,-498.51631604,0.00010444,2]
[403970253,1769700307762,-1.48368396,0.00010444,2]
[403970254,1769700307801,-500.0,0.00010444,2]
[403970255,1769700307837,-500.0,0.00010444,2]
[403970256,1769700307877,-500.0,0.00010444,2]
[403970257,1769700307914,-500.0,0.00010444,2]
[403970258,1769700307956,-500.0,0.00010444,2]
[403970259,1769700307995,-500.0,0.00010444,2]
[403970260,1769700308034,-500.0,0.00010444,2]
[403970261,1769700308074,-500.0,0.00010444,2]
[403970262,1769700308111,-500.0,0.00010444,2]
[403970263,1769700308153,-497.04263208,0.00010444,2]
[403970264,1769700308267,-2.95736792,0.00010444,2]
[403970265,1769700308307,-500.0,0.00010444,2]
[403970266,1769700308349,-500.0,0.00010444,2]
[403970267,1769700308391,-500.0,0.00010444,2]
[403970268,1769700308432,-500.0,0.00010444,2]
[403970269,1769700308475,-500.0,0.00010444,2]
[403970270,1769700308515,-206.2127037,0.00010444,2]
[403970271,1769700308556,-500.0,0.00010444,2]
[403970272,1769700308598,-500.0,0.00010444,2]
[403970273,1769700308640,-500.0,0.00010444,2]
[403970274,1769700308683,-500.0,0.00010444,2]
[403970275,1769700308724,-81.66985676,0.00010444,2]
[403970276,1769700308903,-418.33014324,0.00010444,2]
[403970277,1769700308945,-500.0,0.00010444,2]
[403970278,1769700308986,-500.0,0.00010444,2]
[403970279,1769700309030,-500.0,0.00010444,2]
[403970280,1769700309072,-500.0,0.00010444,2]
[403970281,1769700309117,-500.0,0.00010444,2]
[403970282,1769700309159,-500.0,0.00010444,2]
[403970283,1769700309206,-500.0,0.00010444,2]
[403970284,1769700309246,-500.0,0.00010444,2]
[403970285,1769700309291,-500.0,0.00010444,2]
[403970286,1769700311919,-500.0,0.00010444,2]
[403970287,1769700311958,-500.0,0.00010444,2]
[403970288,1769700311998,-500.0,0.00010444,2]
[403970289,1769700312039,-500.0,0.00010444,2]
[403970290,1769700312080,-500.0,0.00010444,2]
[403970291,1769700312121,-500.0,0.00010444,2]
[403970292,1769700312161,-500.0,0.00010444,2]
[403970293,1769700312200,-500.0,0.00010444,2]
[403970294,1769700312238,-500.0,0.00010444,2]
[403970295,1769700312277,-500.0,0.00010444,2]
[403970296,1769700312471,-500.0,0.00010444,2]
[403970297,1769700312511,-500.0,0.00010444,2]
[403970298,1769700312551,-500.0,0.00010444,2]
[403970299,1769700312592,-500.0,0.00010444,2]
[403970300,1769700312632,-500.0,0.00010444,2]
[403970301,1769700312673,-500.0,0.00010444,2]
[403970302,1769700312717,-500.0,0.00010444,2]
[403970303,1769700312759,-500.0,0.00010444,2]
[403970304,1769700312799,-500.0,0.00010444,2]
[403970305,1769700312841,-500.0,0.00010444,2]
[403970306,1769700312955,-500.0,0.00010444,2]
[403970307,1769700312994,-500.0,0.00010444,2]
[403970308,1769700313036,-500.0,0.00010444,2]
[403970309,1769700313077,-500.0,0.00010444,2]
[403970310,1769700313118,-448.07011419,0.00010444,2]
[403970311,1769700313158,-500.0,0.00010444,2]
[403970312,1769700313201,-363.3199863,0.00010444,2]
[403970313,1769700313241,-500.0,0.00010444,2]
[403970314,1769700313279,-500.0,0.00010444,2]
[403970315,1769700313318,-500.0,0.00010444,2]
[403970316,1769700313383,-500.0,0.00010444,2]
[403970317,1769700313424,-500.0,0.00010444,2]
[403970318,1769700313466,-500.0,0.00010444,2]
[403970319,1769700313509,-500.0,0.00010444,2]
[403970320,1769700313551,-500.0,0.00010444,2]
[403970321,1769700313591,-500.0,0.00010444,2]
[403970322,1769700313637,-500.0,0.00010444,2]
[403970323,1769700313679,-500.0,0.00010444,2]
[403970324,1769700313725,-500.0,0.00010444,2]
[403970325,1769700313767,-500.0,0.00010444,2]
[403970326,1769700329253,673.97121619,0.00010444,2]
[403970327,1769700341821,172.258759,9.792e-05,2]
[403970328,1769700362987,300.0,0.00010443,2]
[403970329,1769700393372,500.0,0.00010443,2]
[403970330,1769700393707,500.0,0.00010443,2]
[403970331,1769700394037,500.0,0.00010443,2]
[403970332,1769700394330,500.0,0.00010443,2]
[403970333,1769700394371,500.0,0.00010443,2]
[403970334,1769700394706,500.0,0.00010443,2]
[403970335,1769700395631,500.0,0.00010443,2]
[403970336,1769700395792,500.0,0.00010443,2]
[403970337,1769700396351,500.0,0.00010443,2]
[403970338,1769700396390,500.0,0.00010443,2]
[403970339,1769700396425,371.11943478,0.00010443,2]
[403970340,1769700396658,500.0,0.00010443,2]
[403970341,1769700396699,500.0,0.00010443,2]
[403970342,1769700396738,500.0,0.00010443,2]
[403970343,1769700396780,500.0,0.00010443,2]
[403970344,1769700396819,500.0,0.00010443,2]
[403970345,1769700396858,500.0,0.00010443,2]
[403970346,1769700396901,482.66059003,0.00010443,2]
[403970347,1769700396936,17.33940997,0.00010443,2]
[403970348,1769700396982,500.0,0.00010443,2]
[403970349,1769700397236,500.0,0.00010443,2]
[403970350,1769700397278,500.0,0.00010443,2]
[403970351,1769700397314,500.0,0.00010443,2]
[403970352,1769700397356,500.0,0.00010443,2]
[403970353,1769700397396,500.0,0.00010443,2]
[403970354,1769700397435,500.0,0.00010443,2]
[403970355,1769700397473,500.0,0.00010443,2]
[403970356,1769700397512,500.0,0.00010443,2]
[403970357,1769700397551,500.0,0.00010443,2]
[403970358,1769700397587,500.0,0.00010443,2]
[403970359,1769700397623,500.0,0.00010443,2]
[403970360,1769700397664,500.0,0.00010443,2]
[403970361,1769700397703,500.0,0.00010443,2]
[403970362,1769700397741,500.0,0.00010443,2]
[403970363,1769700397789,500.0,0.00010443,2]
[403970364,1769700397826,500.0,0.00010443,2]
[403970365,1769700397864,500.0,0.00010443,2]
[403970366,1769700397903,341.17545084,0.00010443,2]
[403970367,1769700397943,500.0,0.00010443,2]
[403970368,1769700397984,141.49513919,0.00010443,2]
[403970369,1769700398018,358.50486081,0.00010443,2]
[403970370,1769700398056,500.0,0.00010443,2]
[403970371,1769700398096,500.0,0.00010443,2]
[403970372,1769700398139,500.0,0.00010443,2]
[403970373,1769700398176,500.0,0.00010443,2]
[403970374,1769700398213,500.0,0.00010443,2]
[403970375,1769700398252,500.0,0.00010443,2]
[403970376,1769700398293,500.0,0.00010443,2]
[403970377,1769700398335,500.0,0.00010443,2]
[403970378,1769700398381,505.82787285,0.00010443,2]
[403970379,1769700398420,500.0,0.00010443,2]
[403970380,1769700398459,500.0,0.00010443,2]
[403970381,1769700398498,500.0,0.00010443,2]
[403970382,1769700398543,500.0,0.00010443,2]
[403970383,1769700398582,500.0,0.00010443,2]
[403970384,1769700398622,208.47558718,0.00010443,2]
[403970385,1769700398665,500.0,0.00010443,2]
[403970386,1769700398705,500.0,0.00010443,2]
[403970387,1769700398744,500.0,0.00010443,2]
[403970388,1769700398784,500.0,0.00010443,2]
[403970389,1769700398829,427.20167916,0.00010443,2]
[403970390,1769700398862,72.79832084,0.00010443,2]
[403970391,1769700398903,500.0,0.00010443,2]
[403970392,1769700398944,500.0,0.00010443,2]
[403970393,1769700399085,500.0,0.00010443,2]
[403970394,1769700399129,500.0,0.00010443,2]
[403970395,1769700399170,500.0,0.00010443,2]
[403970396,1769700399217,500.0,0.00010443,2]
[403970397,1769700399262,500.0,0.00010443,2]
[403970398,1769700399306,500.0,0.00010443,2]
[403970399,1769700399347,500.0,0.00010443,2]
[403970400,1769700399393,500.0,0.00010443,2]
[403970401,1769700399434,500.0,0.00010443,2]
[403970402,1769700399471,500.0,0.00010443,2]
[403970403,1769700399511,500.0,0.00010443,2]
[403970404,1769700399552,500.0,0.00010443,2]
[403970405,1769700399590,500.0,0.00010443,2]
[403970406,1769700399634,500.0,0.00010443,2]
[403970407,1769700399675,500.0,0.00010443,2]
[403970408,1769700399728,500.0,0.00010443,2]
[403970409,1769700399776,500.0,0.00010443,2]
[403970410,1769700399818,427.21167916,0.00010443,2]
[403970411,1769700399853,72.78832084,0.00010443,2]
[403970412,1769700399899,500.0,0.00010443,2]
[403970413,1769700400108,500.0,0.00010443,2]
[403970414,1769700400148,500.0,0.00010443,2]
[403970415,1769700400186,500.0,0.00010443,2]
[403970416,1769700400225,500.0,0.00010443,2]
[403970417,1769700400263,500.0,0.00010443,2]
[403970418,1769700400305,500.0,0.00010443,2]
[403970419,1769700400345,500.0,0.00010443,2]
[403970420,1769700400390,500.0,0.00010443,2]
[403970421,1769700400430,500.0,0.00010443,2]
[403970422,1769700400470,500.0,0.00010443,2]
[403970423,1769700400510,500.0,0.00010443,2]
[403970424,1769700400554,500.0,0.00010443,2]
[403970425,1769700400594,500.0,0.00010443,2]
[403970426,1769700400651,500.0,0.00010443,2]
[403970427,1769700400694,500.0,0.00010443,2]
[403970428,1769700400741,500.0,0.00010443,2]
[403970429,1769700400790,500.0,0.00010443,2]
[403970430,1769700400832,500.0,0.00010443,2]
[403970431,1769700400876,427.22167916,0.00010443,2]
[403970432,1769700400912,72.77832084,0.00010443,2]
[403970433,1769700400958,-529.51876186,0.00010444,2]
[403970434,1769700409291,500.0,0.00010443,2]
[403970435,1769700409332,500.0,0.00010443,2]
[403970436,1769700409374,500.0,0.00010443,2]
[403970437,1769700409414,500.0,0.00010443,2]
[403970438,1769700409452,500.0,0.00010443,2]
[403970439,1769700409500,500.0,0.00010443,2]
[403970440,1769700409545,500.0,0.00010443,2]
[403970441,1769700409592,500.0,0.00010443,2]
[403970442,1769700409643,500.0,0.00010443,2]
[403970443,1769700409688,500.0,0.00010443,2]
[403970444,1769700409734,500.0,0.00010443,2]
[403970445,1769700409779,500.0,0.00010443,2]
[403970446,1769700409825,500.0,0.00010443,2]
[403970447,1769700409871,500.0,0.00010443,2]
[403970448,1769700409917,500.0,0.00010443,2]
[403970449,1769700409961,500.0,0.00010443,2]
[403970450,1769700410004,500.0,0.00010443,2]
[403970451,1769700410053,500.0,0.00010443,2]
[403970452,1769700410100,500.0,0.00010443,2]
[403970453,1769700410142,500.0,0.00010443,2]
[403970454,1769700410196,0.01,0.00010443,2]
[403970455,1769700410234,499.99,0.00010443,2]
[403970456,1769700410284,500.0,0.00010443,2]
[403970457,1769700410329,500.0,0.00010443,2]
[403970458,1769700410380,500.0,0.00010443,2]
[403970459,1769700410422,500.0,0.00010443,2]
[403970460,1769700410472,500.0,0.00010443,2]
[403970461,1769700410520,500.0,0.00010443,2]
[403970462,1769700410567,500.0,0.00010443,2]
[403970463,1769700410615,500.0,0.00010443,2]
[403970464,1769700410662,500.0,0.00010443,2]
[403970465,1769700410712,500.0,0.00010443,2]
[403970466,1769700410763,500.0,0.00010443,2]
[403970467,1769700410819,500.0,0.00010443,2]
[403970468,1769700410870,500.0,0.00010443,2]
[403970469,1769700415756,679.04189717,0.00010444,2]
[403970474,1769700463483,1007.3138815,0.0002738,120]
[403970489,1769700516933,1268.299994,0.0003,120]
[403970490,1769700520709,293.90336534,0.0002849,120]
[403970496,1769700550316,516.61355957,0.00027397,120]
[403970525,1769700587095,-256.64624404,9.982e-05,2]
[403970526,1769700587132,-314.56,0.0001,2]
[403970527,1769700587168,-3857.59751192,0.00010237,2]
[403970528,1769700587554,-1142.40248808,0.00010237,2]
[403970529,1769700587589,-300.0,0.00010339,2]
[403970530,1769700587628,-2115.20502384,0.0001034,2]
[403970531,1769700587675,-2884.79497616,0.0001034,2]
[403970532,1769700587715,-868.02,0.000104,2]
[403970533,1769700594196,-4751.96078703,0.00010446,2]
[403970534,1769700594219,-10000.01,0.00010446,2]
[403970535,1769700596203,-10000.01,0.00010446,2]
[403970536,1769700596335,-10000.01,0.00010446,2]
[403970537,1769700596486,-10000.01,0.00010446,2]
[403970538,1769700596625,-10000.01,0.00010446,2]
[403970539,1769700599562,-5000.0,0.00010342,9]
[403970540,1769700604532,0.01,0.0001,2]
[403970551,1769700608723,-151.31,0.0001,2]
[403970552,1769700608763,-4697.39,0.00010342,2]
[403970553,1769700608839,-302.6,0.00010342,2]
[403970555,1769700608974,-0.01,0.00010342,2]
[403970563,1769700613500,1729.73544546,0.00010342,2]
[403970600,1769700631828,-404.9187168,0.0001034,9]
[403970673,1769700637790,-4595.0812832,0.0001034,9]
[403970674,1769700637800,-5000.0,0.0001034,2]
[403970675,1769700637810,-230.36249498,0.00010392,2]
[403970676,1769700637819,-1200.0,0.00010444,2]
[403970677,1769700637829,-300.0,0.00010445,2]
[403970678,1769700637838,-300.0,0.00010445,2]
[403970679,1769700637847,-300.0,0.00010445,2]
[403970680,1769700637856,-300.0,0.00010445,2]
[403970681,1769700637866,-566.0,0.00010445,2]
[403970682,1769700637875,-500.0,0.00010445,2]
[403970683,1769700637884,-500.0,0.00010445,2]
[403970684,1769700637894,-500.0,0.00010445,2]
[403970685,1769700637903,-500.0,0.00010445,2]
[403970686,1769700637912,-606.46394798,0.00010445,2]
[403970687,1769700637921,-500.0,0.00010445,2]
[403970688,1769700637930,-500.0,0.00010445,2]
[403970689,1769700637941,-2345247.98921297,0.00010446,2]
[403970690,1769700637951,-425.26314551,0.00010618,2]
[403970691,1769700637960,-20027.72879182,0.00010756,2]
[403970692,1769700637970,-300.0,0.00010756,2]
[403970693,1769700637979,-300.0,0.00010756,2]
[403970695,1769700637989,-300.0,0.00010756,2]
[403970697,1769700637999,-300.0,0.00010756,2]
[403970698,1769700638008,-300.0,0.00010756,2]
[403970699,1769700638018,-300.0,0.00010756,2]
[403970700,1769700638027,-300.0,0.00010756,2]
[403970701,1769700638037,-300.0,0.00010756,2]
[403970702,1769700638046,-300.0,0.00010756,2]
[403970703,1769700638056,-300.0,0.00010756,2]
[403970704,1769700638066,-300.0,0.00010756,2]
[403970705,1769700638076,-300.0,0.00010756,2]
[403970706,1769700638085,-300.0,0.00010756,2]
[403970707,1769700638096,-300.0,0.00010756,2]
[403970708,1769700638106,-300.0,0.00010756,2]
[403970709,1769700638116,-600.0,0.00010756,2]
[403970710,1769700638125,-151.32,0.000108,2]
[403970711,1769700638135,-151.0,0.00011,2]
[403970712,1769700638149,-151.0,0.00011,2]
[403970713,1769700638171,-420.0,0.00011484,2]
[403970714,1769700638194,-1680.0,0.00011488,2]
[403970715,1769700638204,-151.32,0.000115,2]
[403970716,1769700638214,-720.0,0.00011832,2]
[403970717,1769700638223,-3726.54849535,0.00012,5]
[403970718,1769700638233,-151.32,0.000123,2]
[403970719,1769700638242,-271.82774408,0.00012392,2]
[403970720,1769700638251,-587.0,0.00012627,2]
[403970721,1769700638261,-2351.0,0.00012637,2]
[403970722,1769700638270,-540.61220927,0.00012758,2]
[403970723,1769700638280,-458.80385379,0.00012843,2]
[403970724,1769700638290,-864.0,0.00013015,2]
[403970725,1769700638299,-151.32,0.000131,2]
[403970726,1769700638309,-250.0,0.00013189,2]
[403970727,1769700638318,-500.0,0.00013273,2]
[403970728,1769700638327,-500.0,0.00013273,2]
[403970729,1769700638337,-500.0,0.00013273,2]
[403970730,1769700638347,-500.0,0.00013273,2]
[403970731,1769700638356,-500.0,0.00013273,2]
[403970732,1769700638366,-500.0,0.00013273,2]
[403970733,1769700638376,-409.96501025,0.00013273,2]
[403970734,1769700638386,-500.0,0.00013273,2]
[403970735,1769700638396,-500.0,0.00013273,2]
[403970736,1769700638405,-500.0,0.00013273,2]
[403970737,1769700638415,-500.0,0.00013273,2]
[403970738,1769700638424,-500.0,0.00013273,2]
[403970739,1769700638433,-500.0,0.00013273,2]
[403970740,1769700638444,-500.0,0.00013273,2]
[403970741,1769700638454,-500.0,0.00013273,2]
[403970742,1769700638464,-500.0,0.00013273,2]
[403970743,1769700638474,-500.0,0.00013273,2]
[403970744,1769700638483,-500.0,0.00013273,2]
[403970745,1769700638494,-500.0,0.00013273,2]
[403970746,1769700638622,-500.0,0.00013273,2]
[403970747,1769700638673,-175.69914693,0.00013273,2]
[403970748,1769700638684,-500.0,0.00013273,2]
[403970749,1769700638698,-500.0,0.00013273,2]
[403970750,1769700638710,-500.0,0.00013273,2]
[403970751,1769700638722,-500.0,0.00013273,2]
[403970752,1769700638741,-500.0,0.00013273,2]
[403970753,1769700638754,-500.0,0.00013273,2]
[403970754,1769700638767,-500.0,0.00013273,2]
[403970755,1769700638779,-500.0,0.00013273,2]
[403970756,1769700638789,-500.0,0.00013273,2]
[403970757,1769700638798,-336.23725898,0.00013273,2]
[403970758,1769700638807,-500.0,0.00013273,2]
[403970759,1769700638816,-500.0,0.00013273,2]
[403970760,1769700638825,-500.0,0.00013273,2]
[403970761,1769700638835,-500.0,0.00013273,2]
[403970762,1769700638845,-500.0,0.00013273,2]
[403970763,1769700638855,-500.0,0.00013273,2]
[403970764,1769700638866,-254.4066558,0.00013273,2]
[403970765,1769700638877,-500.0,0.00013273,2]
[403970766,1769700638887,-500.0,0.00013273,2]
[403970767,1769700638896,-500.0,0.00013273,2]
[403970768,1769700638906,-500.0,0.00013273,2]
[403970769,1769700638916,-608.32613042,0.00013273,2]
[403970770,1769700638926,-1354.78564971,0.00013531,2]
[403970771,1769700638937,-300.0,0.00013673,2]
[403970772,1769700638948,-234.14415303,0.00013698,2]
[403970773,1769700638957,-500.0,0.00013698,2]
[403970774,1769700638969,-342.70010887,0.00013698,2]
[403970775,1769700638980,-500.0,0.00013698,2]
[403970776,1769700638991,-500.0,0.00013698,2]
[403970777,1769700639002,-500.0,0.00013698,2]
[403970778,1769700639012,-500.0,0.00013698,2]
[403970779,1769700639022,-500.0,0.00013698,2]
[403970780,1769700639032,-500.0,0.00013698,2]
[403970781,1769700639042,-500.0,0.00013698,2]
[403970782,1769700639052,-371.0912414,0.00013698,2]
[403970783,1769700639063,-500.0,0.00013698,2]
[403970784,1769700639073,-500.0,0.00013698,2]
[403970785,1769700639083,-500.0,0.00013698,2]
[403970786,1769700639094,-500.0,0.00013698,2]
[403970787,1769700639105,-500.0,0.00013698,2]
[403970788,1769700639116,-500.0,0.00013698,2]
[403970789,1769700639126,-500.0,0.00013698,2]
[403970790,1769700639136,-500.0,0.00013698,2]
[403970791,1769700639146,-500.0,0.00013698,2]
[403970792,1769700639156,-500.0,0.00013698,2]
[403970793,1769700639166,-500.0,0.00013698,2]
[403970794,1769700639176,-500.0,0.00013698,2]